[Event "Romanian-ch Youth Girls U20 2024"]
[Site "Eforie Nord"]
[Date "2024.04.12"]
[Round "1.1"]
[White "Obada, Ema"]
[Black "Anghel, Maria"]
[Result "1/2-1/2"]
[ECO "B13"]
[WhiteElo "1992"]
[BlackElo "1877"]
[Annotator "TA"]
[PlyCount "69"]
[EventDate "2024.04.10"]
[EventType "swiss"]
[EventCountry "ROU"]
[SourceTitle "playchess.com"]
[Source "ChessBase"]
[SourceQuality "1"]
[TimeControl "5400+30"]

{[%evp 12,69,19,13,14,10,10,16,14,8,15,11,14,22,14,0,10,13,6,29,37,37,27,33,26,20,0,25,49,33,34,27,32,15,34,7,14,15,24,33,27,9,33,17,28,0,0,0,0,0,0,0,5,0,25,0,0,-85,-85,-90]} 1. e4 {[%emt 0:00:03]} c6 {[%emt 0:00:13]} 2. d4 {[%emt 0:00:05]} d5 {[%emt 0:00:08]} 3. exd5 {[%emt 0:00:05]} cxd5 {[%emt 0:00:08]} 4. Bd3 {[%emt 0:00:06]} Nc6 {[%emt 0:00:10]} 5. c3 {[%emt 0:00:05]} Nf6 {[%emt 0:00:11]} 6. Bf4 {[%emt 0:00:06]} Bg4 {[%emt 0:00:11]} 7. Qb3 {[%emt 0:00:20]} e5 {[%emt 0:00:14]} 8. dxe5 {[%emt 0:01:56]} Nh5 {[%emt 0:00:25]} 9. Be3 {[%emt 0:01:04]} Nxe5 {[%emt 0:00:21] The position is equal.} 10. Bb5+ {[%emt 0:00:22]} Nc6 {[%emt 0:00:18]} 11. Nd2 {[%emt 0:02:49]} Be6 {[%emt 0:00:12][%cal Od5d4] [#] ...d4! would now be deadly.} 12. Qa4 {[%emt 0:10:02]} Qc7 {[%emt 0:00:14]} 13. Ngf3 {[%emt 0:05:53]} (13. Bxa7 $2 {too greedy.} Nf6 (13... Rxa7 $2 14. Qxa7 Bd6 15. Qa4 $18) 14. Ngf3 (14. Qd4 $2 Nd7 $19) 14... Nd7 (14... Rxa7 $2 15. Qxa7 Bd7 16. Qa8+ Nd8 17. Bxd7+ Nxd7 18. O-O $18) 15. Bxc6 bxc6 $19) 13... Bd6 {[%emt 0:01:04] Wards off Ne5} 14. O-O {[%emt 0:10:41][%cal Oa4h4]} O-O {[%emt 0:00:26]} 15. Rfe1 {[%emt 0:05:01]} a6 {[%emt 0:02:45]} 16. Bd3 {[%emt 0:01:12]} Nf4 {[%emt 0:11:01]} 17. Bxf4 {[%emt 0:00:35]} Bxf4 {[%emt 0:00:45]} 18. g3 {[%emt 0:00:34]} Bxd2 {[%emt 0:08:24]} 19. Nxd2 {[%emt 0:01:07]} b5 {[%emt 0:04:11]} 20. Qh4 {[%emt 0:05:55][%csl Gd3][%cal Rh4h7] [#]} h6 {[%emt 0:01:31]} 21. Nb3 {[%emt 0:07:53]} Qb6 {[%emt 0:06:18]} 22. Nd4 {[%emt 0:21:14]} Nxd4 {[%emt 0:01:10]} 23. cxd4 {[%emt 0:03:03]} Rac8 {[%emt 0:03:19]} 24. Re5 {[%emt 0:02:15]} Qa5 {[%emt 0:09:45]} 25. Qf4 {[%emt 0:01:39] Repels Qd2} Qb4 {[%emt 0:09:32]} 26. Rb1 {[%emt 0:00:51]} Rfe8 {[%emt 0:07:35]} 27. a3 {[%emt 0:00:42]} Qd6 {[%emt 0:02:29]} 28. Rbe1 {[%emt 0:00:15]} f6 {[%emt 0:08:17]} 29. R5e3 {[%emt 0:04:05]} Qxf4 {[%emt 0:01:33]} 30. gxf4 {[%emt 0:00:07]} Kf7 {[%emt 0:01:33] Inhibits Bg6+.} 31. Rg3 {[%emt 0:00:41] And now Bg6+ would win.} (31. f5 $5 Bd7 $8 32. h3 $11) 31... g5 {[%emt 0:01:53]} 32. fxg5 {[%emt 0:01:03]} hxg5 {[%emt 0:00:39][%cal Oe6h3]} 33. Rf1 {[%emt 0:05:01]} Rh8 {[%emt 0:01:36]} 34. Re3 {[%emt 0:03:19]} (34. f4 $1 $11 gxf4 35. Rxf4) 34... Rh4 $17 {[%emt 0:01:18]} 35. Rfe1 {[%emt 0:01:10] Weighted Error Value: White=0.10 (very precise) /Black=0.04 (flawless) .  Mistake:       	White=1     	---        Inaccurate:     	White=2     	---        OK:         	White=12    	Black=16     Best:        	---       	Black=1} 1/2-1/2

[Event "Romanian-ch Youth Girls U20 2024"]
[Site "Eforie Nord"]
[Date "2024.04.12"]
[Round "1.2"]
[White "Rata, Anamaria"]
[Black "Patru, Alexandra-Ioana"]
[Result "0-1"]
[ECO "C54"]
[WhiteElo "1790"]
[BlackElo "1838"]
[Annotator "NA RC COMBH"]
[PlyCount "92"]
[EventDate "2024.04.10"]
[EventType "swiss"]
[EventCountry "ROU"]
[SourceTitle "playchess.com"]
[Source "ChessBase"]
[SourceQuality "1"]
[TimeControl "5400+30"]

1. e4 {[%emt 0:00:14]} e5 {[%emt 0:00:03]} 2. Nf3 {[%emt 0:00:07]} Nc6 {[%emt 0:02:28]} 3. Bc4 {[%emt 0:00:12]} Bc5 {[%emt 0:00:06]} 4. c3 {[%emt 0:00:13]} Nf6 {[%emt 0:00:06]} 5. d4 {[%emt 0:00:05]} exd4 {[%emt 0:00:03]} 6. cxd4 {[%emt 0:00:05]} Bb4+ {[%emt 0:00:05]} 7. Bd2 {[%emt 0:00:09]} Bxd2+ {[%emt 0:00:05]} 8. Nbxd2 {[%emt 0:00:06]} d5 {[%emt 0:00:05]} 9. exd5 {[%emt 0:00:11]} Nxd5 {[%emt 0:00:04]} 10. Qb3 {[%emt 0:00:20]} Na5 {[%emt 0:19:09]} 11. Qa4+ {[%emt 0:00:32]} Nc6 {[%emt 0:00:05]} 12. O-O {[%emt 0:25:22]} O-O {[%emt 0:00:39]} 13. Qc2 {[%emt 0:43:22]} h6 {[%emt 0:07:06]} 14. Rfe1 {[%emt 0:05:54]} Nb6 {[%emt 0:08:55]} 15. Nb3 {[%emt 0:02:40]} Nxc4 {[%emt 0:05:20]} 16. Qxc4 {[%emt 0:00:07]} Be6 {[%emt 0:00:26]} 17. Qc5 {[%emt 0:04:19]} Bd5 {[%emt 0:02:04]} 18. Ne5 {[%emt 0:03:10]} Nxe5 {[%emt 0:01:38]} 19. Rxe5 {[%emt 0:01:31]} c6 {[%emt 0:00:34]} 20. Rae1 {[%emt 0:05:02]} Qf6 {[%emt 0:01:18]} 21. Nd2 {[%emt 0:04:04]} Qg6 {[%emt 0:01:39]} 22. f3 {[%emt 0:00:21]} b6 {[%emt 0:03:22]} 23. Qc3 {[%emt 0:01:01]} f6 {[%emt 0:01:59]} 24. R5e3 {[%emt 0:02:13]} f5 {[%emt 0:01:24]} 25. Nc4 {[%emt 0:00:42]} f4 {[%emt 0:02:20]} 26. Ne5 {[%emt 0:00:40]} Qd6 {[%emt 0:00:32]} 27. R3e2 {[%emt 0:00:18]} Rad8 {[%emt 0:00:46]} 28. Qd3 {[%emt 0:00:56]} c5 {[%emt 0:02:05]} 29. Ng6 {[%emt 0:00:24]} Rf6 {[%emt 0:17:06]} 30. Re8+ {[%emt 0:00:15]} Rxe8 {[%emt 0:00:03]} 31. Rxe8+ {[%emt 0:00:03]} Kf7 {[%emt 0:00:05]} 32. Rf8+ {[%emt 0:01:08]} Ke6 {[%emt 0:00:08]} 33. Qe2+ {[%emt 0:00:26]} Kf5 {[%emt 0:00:26]} 34. Ne7+ {[%emt 0:00:29]} Kg5 {[%emt 0:00:06]} 35. Nxd5 {[%emt 0:00:46]} Rxf8 {[%emt 0:01:00]} 36. Qe4 {[%emt 0:00:22]} h5 {[%emt 0:01:26]} 37. g3 {[%emt 0:00:37]} fxg3 {[%emt 0:02:25]} 38. h4+ {[%emt 0:00:25]} Kh6 {[%emt 0:00:18]} 39. Kg2 {[%emt 0:00:22]} cxd4 {[%emt 0:00:49]} 40. Ne7 {[%emt 0:00:33]} g6 {[%emt 0:00:42]} 41. Nd5 {[%emt 0:00:42]} Rd8 {[%emt 0:02:13]} 42. Nf4 {[%emt 0:00:23]} d3 {[%emt 0:00:33]} 43. Ne6 {[%emt 0:00:31]} Rc8 {[%emt 0:02:19]} 44. Qe3+ {[%emt 0:00:30]} Kh7 {[%emt 0:00:06]} 45. Ng5+ {[%emt 0:00:25]} Kg8 {[%emt 0:00:13]} 46. Qe4 {[%emt 0:00:41]} Rc2+ {[%emt 0:00:36]} 0-1

[Event "Romanian-ch Youth Girls U20 2024"]
[Site "Eforie Nord"]
[Date "2024.04.13"]
[Round "3.1"]
[White "Patru, Alexandra-Ioana"]
[Black "Batagan, Ilinca-Petra"]
[Result "1/2-1/2"]
[ECO "A46"]
[WhiteElo "1838"]
[BlackElo "1908"]
[Annotator "TA"]
[PlyCount "116"]
[EventDate "2024.04.10"]
[EventType "swiss"]
[EventCountry "ROU"]
[SourceTitle "playchess.com"]
[Source "ChessBase"]
[SourceQuality "1"]
[TimeControl "5400+30"]

{[%evp 9,116,6,7,8,9,-7,18,0,45,9,40,37,39,20,57,41,62,56,52,45,54,49,63,18,13,-17,-15,-22,7,-20,25,-61,-65,-66,-80,-235,-224,-421,-410,-380,-106,-1234,-623,-598,-24,-8,-17,0,0,0,0,0,0,0,0,0,0,0,0,0,0,0,79,0,68,56,120,9,10,8,14,18,101,119,112,104,119,121,244,183,397,423,539,516,556,556,591,610,566,633,636,630,608,613,570,556,844,556,556,556,845,0,506,0,1000,865,844,772,633]} 1. d4 {[%emt 0:00:03]} d5 {[%emt 0:00:40]} 2. Nf3 {[%emt 0:00:06]} e6 {[%emt 0:00:52]} 3. g3 {[%emt 0:00:07]} b5 {[%emt 0:09:46]} 4. Bg2 {[%emt 0:00:09]} Nf6 {[%emt 0:01:45]} 5. O-O {[%emt 0:00:09]} Be7 {[%emt 0:01:51]} 6. Nbd2 {[%emt 0:00:08]} O-O {[%emt 0:06:16]} 7. c3 {[%emt 0:00:07]} Bb7 {[%emt 0:03:50]} 8. a4 {[%emt 0:01:03] The position is equal.} a6 {[%emt 0:03:23]} 9. b4 {[%emt 0:03:47]} Nbd7 {[%emt 0:06:00]} 10. Nb3 {[%emt 0:02:56]} Ne4 {[%emt 0:05:33]} 11. Qd3 {[%emt 0:02:22]} Nd6 {[%emt 0:05:18]} 12. Na5 {[%emt 0:00:51]} Rb8 {[%emt 0:03:02]} 13. axb5 {[%emt 0:07:37] White is much more active.} axb5 {[%emt 0:00:26]} 14. Bf4 {[%emt 0:11:17]} Nc4 {[%emt 0:04:19]} 15. h4 {[%emt 0:03:03]} h6 {[%emt 0:07:45]} 16. Nh2 {[%emt 0:04:56]} Bd6 {[%emt 0:05:30]} 17. Bxd6 {[%emt 0:00:58]} cxd6 {[%emt 0:04:59]} 18. Ng4 {[%emt 0:06:54]} f5 {[%emt 0:06:40]} 19. Ne3 {[%emt 0:00:19] And now Nxb7 would win.} Nf6 {[%emt 0:02:02]} 20. Nc2 {[%emt 0:05:49]} ({White should play} 20. Nexc4 $11 bxc4 21. Qe3) 20... Ne4 $15 {[%emt 0:03:32]} 21. Na3 {[%emt 0:02:51]} Ba8 {[%emt 0:02:10]} (21... Nxa5 {simplifies} 22. bxa5 Ra8 23. Bxe4 dxe4 24. Qb1 Rxa5 25. Nxb5 Rxa1 26. Qxa1 Qd7) 22. Kh2 $2 {[%emt 0:02:03]} (22. N5xc4 $17 {is a better defense.} dxc4 (22... bxc4 23. Qc2 $15) 23. Qc2) 22... f4 $1 $19 {[%emt 0:01:51][%cal Oc4e3]} 23. N5xc4 $2 {[%emt 0:05:47]} (23. Bf3) 23... dxc4 {[%emt 0:06:14]} (23... bxc4 24. Qc2 $17) 24. Qc2 {[%emt 0:02:15]} d5 {[%emt 0:00:47]} (24... Nxf2 $1 $19 {and Black stays clearly on top.} 25. Bf3 Bxf3 26. Rxf2 Bd5 (26... fxg3+ $2 27. Kxg3 Bb7 28. e4 $19)) 25. Nb1 $2 {[%emt 0:02:18][%mdl 8192] [#]} (25. Bxe4 $17 dxe4 26. e3) 25... Nxf2 $1 {[%emt 0:01:53][%mdl 512] ( -> ...fxg3+)} 26. Qg6 {[%emt 0:01:20]} fxg3+ {[%emt 0:00:10]} (26... Rf6 $19 27. Qh5 fxg3+ 28. Kxg3 Rf5 29. Qxf5 exf5 30. Kxf2 Qxh4+ 31. Kg1 Qg5) 27. Qxg3 $11 {[%emt 0:01:14]} Ne4 {[%emt 0:00:50]} 28. Rxf8+ $40 {[%emt 0:00:49][%mdl 128] White is up to no good.} Qxf8 {[%emt 0:00:42]} 29. Bxe4 {[%emt 0:00:45]} dxe4 {[%emt 0:00:05]} 30. Nd2 {[%emt 0:00:37][%cal Bb1d2,Bd2f1,Bf1e3][%mdl 32]} e3 {[%emt 0:01:24]} 31. Nf1 {[%emt 0:00:18]} Qf2+ {[%emt 0:04:59]} 32. Qxf2 {[%emt 0:00:06]} exf2 {[%emt 0:00:02][%mdl 4096] Endgame. KRB-KRN} 33. Kg3 {[%emt 0:00:10]} Rf8 {[%emt 0:00:38]} 34. Ra6 {[%emt 0:00:08]} Bd5 {[%emt 0:00:58]} 35. Rb6 {[%emt 0:00:06]} Ra8 {[%emt 0:00:52]} (35... h5 $11) 36. Ne3 {[%emt 0:00:49]} (36. Kxf2 $16 {[%cal Of1e3]} Ra3 37. Ng3) 36... f1=Q {[%emt 0:00:44]} 37. Nxf1 $14 {[%emt 0:00:09]} Ra3 {[%emt 0:00:14] [#]} ({Better is} 37... Ra2 $1 $14) 38. Ne3 {[%emt 0:00:20]} ({White must play} 38. Kf4 $1 $16 {e4 is the strong threat.} Bh1 (38... Rxc3 39. e4 $16) 39. Ng3 (39. Rxe6 Rxc3 40. Re5 Rc1 $11)) 38... Rxc3 $11 {[%emt 0:00:08]} 39. Kf2 {[%emt 0:00:24][%cal Oe3d5]} Kf7 {[%emt 0:01:16]} 40. Rxb5 {[%emt 0:00:08]} Rb3 {[%emt 0:00:19]} (40... Bh1 $11 {remains equal.}) 41. Nxd5 $16 {[%emt 0:00:44]} exd5 {[%emt 0:00:02]} 42. Rxd5 {[%emt 0:00:14]} Rxb4 {[%emt 0:00:05] KR-KR} 43. Rc5 {[%emt 0:00:07]} Ke6 {[%emt 0:00:29] [#]} (43... c3 $16 {was worth a try.}) 44. e4 $1 $18 {[%emt 0:00:26]} c3 $2 {[%emt 0:02:09]} (44... g5) 45. Ke3 {[%emt 0:01:10]} ({Weaker is} 45. Rxc3 Rxd4 46. Ke3 Rd1 $11) 45... Rb3 46. Kd3 {[%emt 0:35:31]} c2+ {[%emt 0:00:00]} 47. Kxc2 {[%emt 0:00:00]} Rh3 {[%emt 0:00:11]} 48. h5 {[%emt 0:00:00]} Re3 {[%emt 0:00:36]} 49. Re5+ {[%emt 0:00:00]} Kd6 {[%emt 0:00:18]} 50. Kd2 {[%emt 0:00:00]} Rg3 {[%emt 0:01:06]} 51. Ra5 {[%emt 0:00:00]} Ke6 {[%emt 0:00:39]} 52. Ke2 {[%emt 0:00:00]} Rh3 {[%emt 0:00:24]} 53. Re5+ {[%emt 0:00:00]} Kd6 {[%emt 0:00:17]} 54. Rf5 {[%emt 0:00:00]} Ke6 {[%emt 0:00:35]} 55. Re5+ {[%emt 0:00:00]} Kd6 $1 {[%emt 0:00:06]} 56. Rf5 {[%emt 0:00:00]} (56. Rb5 $142 Kc7 57. Rf5) 56... Ke6 $1 {[%emt 0:00:07]} 57. d5+ {[%emt 0:05:30]} Kd6 58. Rf7 {[%emt 0:00:30]} Rxh5 {[%emt 0:02:41][%mdl 32768] Never resign too early!   Weighted Error Value: White=0.59/Black=0.58.  Loses game:     	White=1     	---        Missed win:     	---       	Black=1      Mistake:       	White=5     	Black=6      Inaccurate:     	White=6     	Black=7      OK:         	White=16    	Black=8      Best:        	White=8     	Black=2      Strong:       	White=1     	Black=3     . An unexpected result.} 1/2-1/2

[Event "Romanian-ch Youth Girls U20 2024"]
[Site "Eforie Nord"]
[Date "2024.04.13"]
[Round "3.1"]
[White "Rata, Anamaria"]
[Black "Trifoi, Mihaela-Ioana"]
[Result "*"]
[ECO "A46"]
[WhiteElo "1790"]
[BlackElo "2011"]
[Annotator "RC"]
[PlyCount "116"]
[EventDate "2024.04.10"]
[EventType "swiss"]
[EventCountry "ROU"]
[SourceTitle "playchess.com"]
[Source "ChessBase"]
[SourceQuality "1"]
[TimeControl "5400+30"]

1. d4 {[%emt 0:00:03]} d5 {[%emt 0:00:40]} 2. Nf3 {[%emt 0:00:06]} e6 {[%emt 0:00:52]} 3. g3 {[%emt 0:00:07]} b5 {[%emt 0:09:46]} 4. Bg2 {[%emt 0:00:09]} Nf6 {[%emt 0:01:45]} 5. O-O {[%emt 0:00:09]} Be7 {[%emt 0:01:51]} 6. Nbd2 {[%emt 0:00:08]} O-O {[%emt 0:06:16]} 7. c3 {[%emt 0:00:07]} Bb7 {[%emt 0:03:50]} 8. a4 {[%emt 0:01:03]} a6 {[%emt 0:03:23]} 9. b4 {[%emt 0:03:47]} Nbd7 {[%emt 0:06:00]} 10. Nb3 {[%emt 0:02:56]} Ne4 {[%emt 0:05:33]} 11. Qd3 {[%emt 0:02:22]} Nd6 {[%emt 0:05:18]} 12. Na5 {[%emt 0:00:51]} Rb8 {[%emt 0:03:02]} 13. axb5 {[%emt 0:07:37]} axb5 {[%emt 0:00:26]} 14. Bf4 {[%emt 0:11:17]} Nc4 {[%emt 0:04:19]} 15. h4 {[%emt 0:03:03]} h6 {[%emt 0:07:45]} 16. Nh2 {[%emt 0:04:56]} Bd6 {[%emt 0:05:30]} 17. Bxd6 {[%emt 0:00:58]} cxd6 {[%emt 0:04:59]} 18. Ng4 {[%emt 0:06:54]} f5 {[%emt 0:06:40]} 19. Ne3 {[%emt 0:00:19]} Nf6 {[%emt 0:02:02]} 20. Nc2 {[%emt 0:05:49]} Ne4 {[%emt 0:03:32]} 21. Na3 {[%emt 0:02:51]} Ba8 {[%emt 0:02:10]} 22. Kh2 {[%emt 0:02:03]} f4 {[%emt 0:01:51]} 23. N5xc4 {[%emt 0:05:47]} dxc4 {[%emt 0:06:14]} 24. Qc2 {[%emt 0:02:15]} d5 {[%emt 0:00:47]} 25. Nb1 {[%emt 0:02:18]} Nxf2 {[%emt 0:01:53]} 26. Qg6 {[%emt 0:01:20]} fxg3+ {[%emt 0:00:10]} 27. Qxg3 {[%emt 0:01:14]} Ne4 {[%emt 0:00:50]} 28. Rxf8+ {[%emt 0:00:49]} Qxf8 {[%emt 0:00:42]} 29. Bxe4 {[%emt 0:00:45]} dxe4 {[%emt 0:00:05]} 30. Nd2 {[%emt 0:00:37]} e3 {[%emt 0:01:24]} 31. Nf1 {[%emt 0:00:18]} Qf2+ {[%emt 0:04:59]} 32. Qxf2 {[%emt 0:00:06]} exf2 {[%emt 0:00:02]} 33. Kg3 {[%emt 0:00:10]} Rf8 {[%emt 0:00:38]} 34. Ra6 {[%emt 0:00:08]} Bd5 {[%emt 0:00:58]} 35. Rb6 {[%emt 0:00:06]} Ra8 {[%emt 0:00:52]} 36. Ne3 {[%emt 0:00:49]} f1=Q {[%emt 0:00:44]} 37. Nxf1 {[%emt 0:00:09]} Ra3 {[%emt 0:00:14]} 38. Ne3 {[%emt 0:00:20]} Rxc3 {[%emt 0:00:08]} 39. Kf2 {[%emt 0:00:24]} Kf7 {[%emt 0:01:16]} 40. Rxb5 {[%emt 0:00:08]} Rb3 {[%emt 0:00:19]} 41. Nxd5 {[%emt 0:00:44]} exd5 {[%emt 0:00:02]} 42. Rxd5 {[%emt 0:00:14]} Rxb4 {[%emt 0:00:05]} 43. Rc5 {[%emt 0:00:07]} Ke6 {[%emt 0:00:29]} 44. e4 {[%emt 0:00:26]} c3 {[%emt 0:02:09]} 45. Ke3 {[%emt 0:01:10]} Rb3 46. Kd3 {[%emt 0:35:31]} c2+ {[%emt 0:00:00]} 47. Kxc2 {[%emt 0:00:00]} Rh3 {[%emt 0:00:11]} 48. h5 {[%emt 0:00:00]} Re3 {[%emt 0:00:36]} 49. Re5+ {[%emt 0:00:00]} Kd6 {[%emt 0:00:18]} 50. Kd2 {[%emt 0:00:00]} Rg3 {[%emt 0:01:06]} 51. Ra5 {[%emt 0:00:00]} Ke6 {[%emt 0:00:39]} 52. Ke2 {[%emt 0:00:00]} Rh3 {[%emt 0:00:24]} 53. Re5+ {[%emt 0:00:00]} Kd6 {[%emt 0:00:17]} 54. Rf5 {[%emt 0:00:00]} Ke6 {[%emt 0:00:35]} 55. Re5+ {[%emt 0:00:00]} Kd6 {[%emt 0:00:06]} 56. Rf5 {[%emt 0:00:00]} Ke6 {[%emt 0:00:07]} 57. d5+ {[%emt 0:05:30]} Kd6 58. Rf7 {[%emt 0:00:30]} Rxh5 {[%emt 0:02:41]} *

[Event "Romanian-ch Youth Girls U20 2024"]
[Site "Eforie Nord"]
[Date "2024.04.13"]
[Round "3.2"]
[White "Batagan, Ilinca-Petra"]
[Black "Anghel, Maria"]
[Result "*"]
[ECO "A17"]
[WhiteElo "1908"]
[BlackElo "1877"]
[Annotator "TA"]
[PlyCount "68"]
[EventDate "2024.04.10"]
[EventType "swiss"]
[EventCountry "ROU"]
[SourceTitle "playchess.com"]
[Source "ChessBase"]
[SourceQuality "1"]
[TimeControl "5400+30"]

{[%evp 13,68,-18,-6,-20,62,38,43,35,35,30,45,31,34,11,8,11,12,10,8,8,8,4,-3,-7,-8,-4,0,0,0,0,0,-352,-345,-695,-77,-73,-64,-370,-376,-356,-351,-343,-343,-320,-128,-125,-129,-126,-118,-131,-123,-125,-105,-107,-105,-110,-102]} 1. c4 {[%emt 0:00:06]} Nf6 {[%emt 0:00:12]} 2. Nc3 {[%emt 0:00:13]} e6 {[%emt 0:00:14]} 3. g3 {[%emt 0:00:56]} d5 {[%emt 0:00:42]} 4. Bg2 {[%emt 0:00:45]} c6 {[%emt 0:00:55]} 5. cxd5 {[%emt 0:05:46]} exd5 {[%emt 0:01:39]} 6. d4 {[%emt 0:00:09]} Bf5 {[%emt 0:01:43]} 7. Nf3 {[%emt 0:12:33]} Bd6 {[%emt 0:03:29]} 8. Nh4 {[%emt 0:08:39]} Bg6 {[%emt 0:12:50]} ({Better is} 8... Be6 $11) 9. Nxg6 {[%emt 0:01:47]} hxg6 {[%emt 0:00:08]} 10. Bg5 {[%emt 0:02:38] White is slightly better.} Nbd7 {[%emt 0:01:10]} 11. O-O {[%emt 1:02:28]} Qb6 {[%emt 0:17:24]} 12. e4 {[%emt 0:04:30]} dxe4 {[%emt 0:04:47]} 13. Nxe4 {[%emt 0:02:54]} (13. d5 {seems wilder.} O-O 14. dxc6 Qxc6 15. Rc1) 13... Nxe4 {[%emt 0:00:46]} 14. Bxe4 {[%emt 0:00:12] This pair of bishops is nice.} O-O {[%emt 0:11:07]} 15. h4 {[%emt 0:00:41]} Nf6 {[%emt 0:09:21]} 16. Bxf6 {[%emt 0:02:04]} gxf6 {[%emt 0:00:07]} 17. h5 {[%emt 0:01:01]} f5 {[%emt 0:02:50]} 18. Bc2 {[%emt 0:01:45]} Kg7 {[%emt 0:02:49]} 19. Kg2 {[%emt 0:15:25]} Rh8 {[%emt 0:03:34]} (19... Qxb2 20. hxg6 Qb5 (20... fxg6 21. Rb1 $16) 21. Qf3 $16) 20. Rh1 {[%emt 0:01:19]} Rh6 {[%emt 0:09:21]} 21. Qd2 {[%emt 0:03:25] And now hxg6 would win.} (21. Qd3 {simplifies} Qb5 22. Qxb5 cxb5 23. hxg6 Rxh1 24. Rxh1 fxg6 25. Bb3) 21... Rah8 {[%emt 0:01:46]} 22. g4 $2 {[%emt 0:06:25][%mdl 8192] [#]} fxg4 $19 {[%emt 0:14:36]} 23. hxg6 $2 {[%emt 0:04:10]} (23. Qc3 gxh5 (23... Rxh5 $2 24. Rxh5 Rxh5 25. Rh1 $19) 24. Rhf1) 23... fxg6 $2 {[%emt 0:04:28]} (23... Qxb2 $2 24. Rxh6 Rxh6 (24... Qxa1 25. Rxh8 Kf6 26. gxf7) 25. Rh1 Rxh1 26. Kxh1 $17) (23... Qb5 $19 {is more deadly. ( -> ...Qd5+)} 24. Qd3 Rh2+ (24... Qxb2 25. Rxh6 Rxh6 26. Rb1 $16) (24... fxg6 25. Qxb5 Rh2+ 26. Rxh2 $19) 25. Rxh2 Rxh2+ 26. Kf1 Rh1+ (26... fxg6 27. Qxb5 cxb5 28. Re1 $15) (26... Qxb2 27. Rb1 $11) 27. Ke2 Qxd3+ (27... Rxa1 $2 28. Qxb5 cxb5 29. Bf5 $19) 28. Kxd3 Rxa1 29. gxf7 Kxf7) 24. Qd3 {[%emt 0:04:50]} Qa5 {[%emt 0:01:37] White is weak on the dark squares} (24... Qxb2 25. Rxh6 Rxh6 (25... Qxa1 26. Qxg6+ Kf8 27. Qxd6+ Kg8 28. Bb3+ Kg7 29. Qf6#) 26. Rb1 (26. Rh1 Qb5 $17) 26... Qxa2 (26... Rh2+ $2 27. Kg1 $18) 27. Rxb7+ Kf6 28. Qe4 $15) 25. Qe4 $2 {[%emt 0:08:14][%mdl 8192] [#]} ({White should play} 25. Rxh6 $15 Rxh6 26. Rh1 Qd5+ (26... Qxa2 $2 27. Rxh6 Qf7 28. Qxg6+ Qxg6 29. Rxg6+ $18) 27. Qe4) 25... Rh2+ $1 {[%emt 0:05:05]} 26. Rxh2 {[%emt 0:00:15]} Rxh2+ {[%emt 0:00:03]} 27. Kg1 {[%emt 0:01:42]} Qh5 {[%emt 0:00:32]} 28. Re1 {[%emt 0:03:24][%cal Oe4g6]} g3 {[%emt 0:02:43]} (28... Rh3 $19 29. Re3 Rf3) 29. fxg3 $17 {[%emt 0:00:39]} Rd2 $1 {[%emt 0:00:37]} (29... Bxg3 $2 {loses.} 30. Qe7+ Kh6 31. Qf8+ Kg5 32. Qd8+ Kg4 (32... Kh6 $2 33. Qh8+ Kg5 34. Re5+ Bxe5 35. Qxe5+ Kh6 36. Qxh2 $18) 33. Re4+ (33. Bd1+ Kh3 $11) 33... Kh3 34. Qd7+ Qf5 35. Rh4+ (35. Qxb7 $2 Qf2#) 35... Kxh4 36. Bxf5 gxf5 37. Qxf5 $18 (37. Qxb7 Re2 $16)) 30. Qxg6+ {[%emt 0:06:43]} Qxg6 {[%emt 0:00:02]} 31. Bxg6 {[%emt 0:00:08]} Bxg3 {[%emt 0:00:24]} 32. Re6 {[%emt 0:00:33] Black is better.} Bf2+ {[%emt 0:01:01]} ({Don't do} 32... Rxd4 33. Bh5 Rd5 34. Rg6+ Kh7 35. Rxg3) 33. Kf1 {[%emt 0:03:13]} Bxd4 {[%emt 0:00:22]} 34. b3 {[%emt 0:00:48]} Rxa2 {[%emt 0:00:25] Weighted Error Value: White=0.61/Black=0.44.  Loses game:     	White=2     	---        Missed win:     	---       	Black=2      Mistake:       	White=1     	Black=1      OK:         	White=9     	Black=8      Best:        	White=5     	Black=2      Strong:       	---       	Black=2} *